[Event "WSTCC-65 2020"]
[Site "Prague"]
[Date "2020.03.09"]
[Round "4.46"]
[White "Svensson, Soren"]
[Black "Beltz, Robert"]
[Result "0-1"]
[ECO "A41"]
[WhiteElo "1868"]
[BlackElo "2158"]
[Annotator "ChessBase"]
[PlyCount "64"]
[EventDate "2020.03.06"]
[EventType "team-tourn"]
[EventCountry "CZE"]
[SourceTitle "playchess.com"]
[Source "ChessBase"]
[SourceQuality "1"]
[TimeControl "40/5400+30:1800+30"]

1. d4 {[%emt 0:00:00]} d6 {[%emt 0:00:00]} 2. c4 {[%emt 0:01:21]} f5 {[%emt 0:00:09]} 3. Nf3 {[%emt 0:00:35]} Nf6 {[%emt 0:00:51]} 4. Nc3 {[%emt 0:01:07]} g6 {[%emt 0:00:46]} 5. g3 {[%emt 0:03:55]} Bg7 {[%emt 0:00:09]} 6. Bg2 {[%emt 0:00:06]} O-O {[%emt 0:00:08]} 7. O-O {[%emt 0:00:21]} Qe8 {[%emt 0:01:12]} 8. d5 {[%emt 0:14:19]} a5 {[%emt 0:04:53]} 9. Nd4 {[%emt 0:01:00]} Na6 {[%emt 0:02:18]} 10. a3 {[%emt 0:06:28]} Bd7 {[%emt 0:08:00]} 11. Rb1 {[%emt 0:03:19]} a4 {[%emt 0:01:48]} 12. b4 {[%emt 0:06:42]} axb3 {[%emt 0:00:42]} 13. Nxb3 {[%emt 0:00:31]} Ng4 {[%emt 0:04:49]} 14. Bb2 {[%emt 0:15:55]} Ne5 {[%emt 0:03:01]} 15. Nd2 {[%emt 0:00:31]} Nc5 {[%emt 0:01:46]} 16. Nb5 {[%emt 0:07:42]} Qc8 {[%emt 0:02:56]} 17. f4 {[%emt 0:06:50]} Ng4 {[%emt 0:03:18]} 18. Rf3 {[%emt 0:00:39]} e5 {[%emt 0:06:19]} 19. dxe6 {[%emt 0:04:42]} Bc6 {[%emt 0:07:30]} 20. Qc1 {[%emt 0:06:48]} Bxb2 {[%emt 0:09:51]} 21. Qxb2 {[%emt 0:02:04]} Nxe6 {[%emt 0:00:09]} 22. Rc3 {[%emt 0:02:51]} Bxg2 {[%emt 0:00:57]} 23. Kxg2 {[%emt 0:00:08]} Qd7 {[%emt 0:00:16]} 24. Nf3 {[%emt 0:06:18]} Nc5 {[%emt 0:01:37]} 25. Rcc1 {[%emt 0:01:49]} Rfe8 {[%emt 0:02:12]} 26. h3 {[%emt 0:01:02]} Ne3+ {[%emt 0:01:24]} 27. Kh2 {[%emt 0:00:31]} Ra4 {[%emt 0:02:28]} 28. Qd4 {[%emt 0:02:08]} Re4 {[%emt 0:01:31]} 29. Qf6 {[%emt 0:01:12]} Nxc4 {[%emt 0:01:40]} 30. Nc3 {[%emt 0:00:48]} Re6 {[%emt 0:03:37]} 31. Qd4 {[%emt 0:00:31]} Qc6 {[%emt 0:04:24]} 32. Ng5 {[%emt 0:02:04]} Ne3 {[%emt 0:01:03]} 0-1

[Event "WSTCC-65 2020"]
[Site "Prague"]
[Date "2020.03.09"]
[Round "4.47"]
[White "Baumbach, Friedrich"]
[Black "Olsson, Torgny"]
[Result "1-0"]
[ECO "A56"]
[WhiteElo "2130"]
[BlackElo "1800"]
[Annotator "ChessBase"]
[PlyCount "83"]
[EventDate "2020.03.06"]
[EventType "team-tourn"]
[EventCountry "CZE"]
[SourceTitle "playchess.com"]
[Source "ChessBase"]
[SourceQuality "1"]
[TimeControl "40/5400+30:1800+30"]

1. d4 {[%emt 0:00:00]} Nf6 {[%emt 0:00:00]} 2. c4 {[%emt 0:00:00]} c5 {[%emt 0:00:25]} 3. Nf3 {[%emt 0:00:22]} cxd4 {[%emt 0:00:35]} 4. Nxd4 {[%emt 0:00:11]} Nc6 {[%emt 0:00:37]} 5. Nc3 {[%emt 0:01:35]} Qb6 {[%emt 0:03:27]} 6. Nb3 {[%emt 0:01:48]} e6 {[%emt 0:01:00]} 7. e3 {[%emt 0:00:47]} Be7 {[%emt 0:01:53]} 8. Be2 {[%emt 0:00:27]} O-O {[%emt 0:01:25]} 9. O-O {[%emt 0:00:16]} a6 {[%emt 0:03:44]} 10. e4 {[%emt 0:01:35]} Qc7 {[%emt 0:06:04]} 11. Bg5 {[%emt 0:03:59]} d6 {[%emt 0:04:48]} 12. Rc1 {[%emt 0:02:01]} Re8 {[%emt 0:16:33]} 13. Qd2 {[%emt 0:02:31]} Ne5 {[%emt 0:14:07]} 14. f3 {[%emt 0:12:48]} b6 {[%emt 0:04:35]} 15. Rfd1 {[%emt 0:01:37]} Rd8 {[%emt 0:01:39]} 16. Be3 {[%emt 0:03:25]} Ned7 {[%emt 0:03:43]} 17. Bf1 {[%emt 0:01:27]} Bb7 {[%emt 0:00:50]} 18. Qf2 {[%emt 0:00:56]} Nc5 {[%emt 0:02:03]} 19. Nd4 {[%emt 0:00:46]} Ncd7 {[%emt 0:07:17]} 20. b4 {[%emt 0:02:52]} g6 {[%emt 0:01:48]} 21. Na4 {[%emt 0:01:50]} Qb8 {[%emt 0:04:22]} 22. Nb3 {[%emt 0:01:51]} b5 {[%emt 0:00:48]} 23. Nb6 {[%emt 0:08:22]} Nxb6 {[%emt 0:03:10]} 24. Bxb6 {[%emt 0:00:23]} Rf8 {[%emt 0:02:31]} 25. cxb5 {[%emt 0:01:16]} d5 {[%emt 0:02:08]} 26. Bc7 {[%emt 0:01:58]} Qc8 {[%emt 0:02:54]} 27. Be5 {[%emt 0:02:21]} Qd8 {[%emt 0:00:55]} 28. Na5 {[%emt 0:02:24]} Bc8 {[%emt 0:01:24]} 29. b6 {[%emt 0:02:08]} Bd7 {[%emt 0:02:28]} 30. b7 {[%emt 0:06:23]} Rb8 {[%emt 0:00:55]} 31. Bc7 {[%emt 0:05:47]} Qe8 {[%emt 0:00:30]} 32. e5 {[%emt 0:00:20]} Nh5 {[%emt 0:02:06]} 33. Qb6 {[%emt 0:00:59]} Bd8 {[%emt 0:01:53]} 34. Bxa6 {[%emt 0:01:11]} Bxc7 {[%emt 0:00:27]} 35. Rxc7 {[%emt 0:00:55]} Nf4 {[%emt 0:01:16]} 36. g3 {[%emt 0:02:39]} Nh3+ {[%emt 0:00:31]} 37. Kg2 {[%emt 0:00:14]} Ng5 {[%emt 0:00:18]} 38. h4 {[%emt 0:00:32]} f6 {[%emt 0:00:57]} 39. hxg5 {[%emt 0:02:18]} fxg5 {[%emt 0:00:38]} 40. Qe3 {[%emt 0:00:00]} Qf7 {[%emt 0:00:00]} 41. Bb5 {[%emt 0:01:40]} Rbd8 {[%emt 0:01:40]} 42. Nc6 1-0

[Event "WSTCC-65 2020"]
[Site "Prague"]
[Date "2020.03.09"]
[Round "4.48"]
[White "Andersson, Erik"]
[Black "Walther, Hans-Wolfgang"]
[Result "0-1"]
[ECO "A04"]
[WhiteElo "1607"]
[BlackElo "2111"]
[Annotator "ChessBase"]
[PlyCount "58"]
[EventDate "2020.03.06"]
[EventType "team-tourn"]
[EventCountry "CZE"]
[SourceTitle "playchess.com"]
[Source "ChessBase"]
[SourceQuality "1"]
[TimeControl "40/5400+30:1800+30"]

1. Nf3 {[%emt 0:00:00]} f5 {[%emt 0:00:00]} 2. b3 {[%emt 0:00:00]} e6 {[%emt 0:01:11]} 3. Bb2 {[%emt 0:00:22]} Nf6 {[%emt 0:00:09]} 4. e3 {[%emt 0:00:34]} b6 {[%emt 0:01:35]} 5. d4 {[%emt 0:01:08]} Bb7 {[%emt 0:00:27]} 6. Be2 {[%emt 0:02:46]} Bb4+ {[%emt 0:04:55]} 7. c3 {[%emt 0:01:52]} Be7 {[%emt 0:00:07]} 8. Nbd2 {[%emt 0:00:33]} O-O {[%emt 0:03:10]} 9. O-O {[%emt 0:02:06]} Qe8 {[%emt 0:02:58]} 10. Ne5 {[%emt 0:04:09]} d6 {[%emt 0:02:04]} 11. Bf3 {[%emt 0:04:56]} c6 {[%emt 0:02:53]} 12. Nd3 {[%emt 0:00:14]} d5 {[%emt 0:10:01]} 13. c4 {[%emt 0:06:10]} Nbd7 {[%emt 0:00:58]} 14. b4 {[%emt 0:04:13]} Bd6 {[%emt 0:05:41]} 15. Rc1 {[%emt 0:12:11]} Ne4 {[%emt 0:02:48]} 16. Nb3 {[%emt 0:08:17]} Rc8 {[%emt 0:15:18]} 17. a3 {[%emt 0:07:02]} Bb8 {[%emt 0:07:52]} 18. Nd2 {[%emt 0:03:29]} Ba6 {[%emt 0:05:26]} 19. Bxe4 {[%emt 0:09:54]} fxe4 {[%emt 0:00:29]} 20. Ne1 {[%emt 0:00:33]} Qg6 {[%emt 0:12:31]} 21. Qe2 {[%emt 0:06:27]} Qh6 {[%emt 0:03:38]} 22. g3 {[%emt 0:01:12]} Rf5 {[%emt 0:06:32]} 23. b5 {[%emt 0:01:48]} Bb7 {[%emt 0:00:03]} 24. h4 {[%emt 0:03:14]} cxb5 {[%emt 0:02:01]} 25. cxb5 {[%emt 0:01:48]} Rcf8 {[%emt 0:03:04]} 26. Ng2 {[%emt 0:01:58]} g5 {[%emt 0:00:36]} 27. h5 {[%emt 0:07:31]} Rf3 {[%emt 0:01:03]} 28. Ne1 Qxh5 {[%emt 0:01:28]} 29. Kg2 {[%emt 0:02:46]} Rxg3+ {[%emt 0:00:16]} 0-1

[Event "WSTCC-65 2020"]
[Site "Prague"]
[Date "2020.03.10"]
[Round "5.8"]
[White "Mozny, Milos"]
[Black "Heinsohn, Guenther"]
[Result "1/2-1/2"]
[ECO "A49"]
[WhiteElo "2261"]
[BlackElo "2157"]
[Annotator "ChessBase"]
[PlyCount "37"]
[EventDate "2020.03.06"]
[EventType "team-tourn"]
[EventCountry "CZE"]
[SourceTitle "playchess.com"]
[Source "ChessBase"]
[SourceQuality "1"]
[TimeControl "40/5400+30:1800+30"]

1. d4 {[%emt 0:02:36]} Nf6 {[%emt 0:00:00]} 2. Nf3 {[%emt 0:00:18]} g6 {[%emt 0:00:55]} 3. g3 {[%emt 0:00:13]} Bg7 {[%emt 0:00:10]} 4. c4 {[%emt 0:00:09]} O-O {[%emt 0:00:29]} 5. Bg2 {[%emt 0:00:03]} c6 {[%emt 0:00:44]} 6. O-O {[%emt 0:00:19]} d6 {[%emt 0:00:37]} 7. Nc3 {[%emt 0:01:04]} Qb6 {[%emt 0:01:48]} 8. h3 {[%emt 0:02:10]} Qa6 {[%emt 0:06:04]} 9. b3 {[%emt 0:02:08]} b5 {[%emt 0:01:32]} 10. Nd2 {[%emt 0:05:36]} Bb7 {[%emt 0:03:22]} 11. Bb2 {[%emt 0:04:37]} Nbd7 {[%emt 0:04:53]} 12. Qc2 {[%emt 0:03:51]} Qb6 {[%emt 0:05:08]} 13. e3 {[%emt 0:05:01]} a6 {[%emt 0:03:06]} 14. Rac1 {[%emt 0:03:22]} Rac8 {[%emt 0:01:48]} 15. Nce4 {[%emt 0:06:47]} Nxe4 {[%emt 0:07:36]} 16. Qxe4 {[%emt 0:03:19]} Rfe8 {[%emt 0:05:16]} 17. Qf3 {[%emt 0:02:44]} Ba8 {[%emt 0:02:56]} 18. Qg4 {[%emt 0:04:10]} Nf6 {[%emt 0:01:57]} 19. Qe2 1/2-1/2

[Event "WSTCC-65 2020"]
[Site "Prague"]
[Date "2020.03.10"]
[Round "5.12"]
[White "Herbrechtsmeier, Christof"]
[Black "Letzelter, Jean-Claude"]
[Result "0-1"]
[ECO "B13"]
[WhiteElo "2177"]
[BlackElo "2128"]
[Annotator "NA"]
[PlyCount "56"]
[EventDate "2020.03.06"]
[EventType "team-tourn"]
[EventCountry "CZE"]
[SourceTitle "playchess.com"]
[Source "ChessBase"]
[SourceQuality "1"]
[TimeControl "40/5400+30:1800+30"]

1. e4 {[%emt 0:00:00]} c6 {[%emt 0:00:00]} 2. d4 {[%emt 0:00:00]} d5 {[%emt 0:00:00]} 3. exd5 {[%emt 0:00:06]} cxd5 {[%emt 0:00:00]} 4. Bd3 {[%emt 0:00:11]} Nc6 {[%emt 0:00:00]} 5. c3 {[%emt 0:00:05]} Nf6 {[%emt 0:00:55]} 6. h3 {[%emt 0:00:35]} e6 {[%emt 0:00:19]} 7. Bf4 {[%emt 0:00:38]} Bd6 {[%emt 0:00:50]} 8. Bxd6 {[%emt 0:00:23]} Qxd6 {[%emt 0:00:03]} 9. Nf3 {[%emt 0:00:20]} Ne4 {[%emt 0:06:02] B13: Caro-Kann: Exchange Variation and Panov-Botvinnik Attack.} 10. O-O {[%emt 0:08:27]} O-O {[%emt 0:01:57]} 11. Re1 {[%emt 0:06:44]} f5 {[%emt 0:00:25]} 12. Ne5 {[%emt 0:01:16]} Nxe5 {[%emt 0:15:29]} 13. dxe5 {[%emt 0:00:11]} Qxe5 {[%emt 0:00:14]} 14. f3 {[%emt 0:01:40]} Qg3 {[%emt 0:00:16]} 15. fxe4 {[%emt 0:03:15]} fxe4 {[%emt 0:00:03]} 16. Bf1 {[%emt 0:01:02]} Qf2+ {[%emt 0:00:33]} 17. Kh1 {[%emt 0:01:08]} Qxb2 {[%emt 0:00:04] [#]} 18. Nd2 $146 {[%emt 0:00:28]} ({Predecessor:} 18. Qd2 Qb6 19. Qd4 Qb2 20. Qd2 Qxa1 21. Na3 Rxf1+ 22. Rxf1 Qxf1+ 23. Kh2 Bd7 {0-1 (23) Karacsony,Z (2064)-Runda,M (1930) Hungary 2013}) 18... Qxc3 {[%emt 0:00:22]} 19. Rc1 {[%emt 0:00:27]} Qe5 {[%emt 0:05:35]} 20. Qb3 {[%emt 0:22:19]} Rf2 {[%emt 0:08:17]} 21. Rc2 {[%emt 0:09:33]} b6 {[%emt 0:08:06]} 22. Qa4 {[%emt 0:13:47]} Bb7 {[%emt 0:09:14]} 23. Ba6 {[%emt 0:02:37]} Qg5 $2 {[%emt 0:12:28]} (23... Bxa6 $19 {has better winning chances.} 24. Qxa6 Raf8) 24. Rg1 {[%emt 0:02:46]} Bxa6 {[%emt 0:00:12]} ({Of course not} 24... Rxd2 $6 25. Bxb7 Rxc2 26. Bxa8 $11) 25. Nxe4 {[%emt 0:01:20]} Rf4 $17 {[%emt 0:07:20] Pin} 26. Qxa6 {[%emt 0:01:12]} dxe4 {[%emt 0:03:00]} 27. Rc8+ {[%emt 0:01:15]} Rf8 {[%emt 0:01:22]} 28. Rxa8 {[%emt 0:05:07]} Rxa8 {[%emt 0:01:02]} 0-1

[Event "WSTCC-65 2020"]
[Site "Prague"]
[Date "2020.03.10"]
[Round "5.15"]
[White "Salov, Sergej"]
[Black "Aragones-Melhem, Georgy"]
[Result "1-0"]
[ECO "C41"]
[WhiteElo "2135"]
[BlackElo "2106"]
[Annotator "ChessBase"]
[PlyCount "83"]
[EventDate "2020.03.06"]
[EventType "team-tourn"]
[EventCountry "CZE"]
[SourceTitle "playchess.com"]
[Source "ChessBase"]
[SourceQuality "1"]
[TimeControl "40/5400+30:1800+30"]

1. e4 {[%emt 0:00:00]} d6 {[%emt 0:00:00]} 2. d4 {[%emt 0:00:00]} e5 {[%emt 0:00:00]} 3. Nf3 {[%emt 0:00:27]} exd4 {[%emt 0:01:50]} 4. Nxd4 {[%emt 0:00:36]} Nf6 {[%emt 0:00:29]} 5. Nc3 {[%emt 0:00:14]} Be7 {[%emt 0:01:45]} 6. g3 {[%emt 0:01:19]} O-O {[%emt 0:03:25]} 7. Bg2 {[%emt 0:00:28]} Re8 {[%emt 0:00:24]} 8. O-O {[%emt 0:00:48]} c6 {[%emt 0:00:33]} 9. h3 {[%emt 0:02:51]} Qc7 {[%emt 0:01:35]} 10. Re1 {[%emt 0:13:32]} Bf8 {[%emt 0:00:31]} 11. Bf4 {[%emt 0:10:28]} g6 {[%emt 0:00:40]} 12. g4 {[%emt 0:02:12]} Nbd7 {[%emt 0:01:13]} 13. a4 {[%emt 0:05:13]} a5 {[%emt 0:00:30]} 14. Bg3 {[%emt 0:03:54]} Qb6 {[%emt 0:08:24]} 15. Qd2 {[%emt 0:06:23]} Ne5 {[%emt 0:11:53]} 16. b3 {[%emt 0:03:55]} h5 {[%emt 0:03:22]} 17. g5 {[%emt 0:04:26]} Nh7 {[%emt 0:00:38]} 18. f4 {[%emt 0:02:41]} Nd7 {[%emt 0:15:40]} 19. Bf2 {[%emt 0:03:32]} Qb4 {[%emt 0:00:52]} 20. Rad1 {[%emt 0:06:26]} Nc5 {[%emt 0:03:35]} 21. Nde2 {[%emt 0:05:11]} Bd7 {[%emt 0:06:08]} 22. Nc1 {[%emt 0:04:57]} Rad8 {[%emt 0:04:16]} 23. Qd4 {[%emt 0:04:36]} Ne6 {[%emt 0:02:50]} 24. Qxb4 {[%emt 0:03:17]} axb4 {[%emt 0:00:07]} 25. N3e2 {[%emt 0:00:08]} c5 {[%emt 0:00:48]} 26. h4 {[%emt 0:01:36]} Bc6 {[%emt 0:03:36]} 27. f5 {[%emt 0:00:54]} Nc7 {[%emt 0:02:29]} 28. Nf4 {[%emt 0:00:44]} Kg7 {[%emt 0:06:33]} 29. Ncd3 {[%emt 0:02:40]} f6 {[%emt 0:05:09]} 30. Nxg6 {[%emt 0:01:46]} fxg5 {[%emt 0:00:25]} 31. Nxf8 {[%emt 0:01:05]} Rxf8 {[%emt 0:01:46]} 32. hxg5 {[%emt 0:00:45]} Nxg5 {[%emt 0:00:01]} 33. Bh4 Kh6 34. Nf4 {[%emt 0:00:56]} Rg8 {[%emt 0:00:15]} 35. Kf2 {[%emt 0:00:20]} Rdf8 {[%emt 0:00:11]} 36. Rxd6+ {[%emt 0:00:13]} Kh7 {[%emt 0:00:01]} 37. Rg6 {[%emt 0:01:40]} Nf7 {[%emt 0:00:57]} 38. Rxg8 {[%emt 0:00:42]} Rxg8 {[%emt 0:00:16]} 39. Nxh5 {[%emt 0:00:25]} Ne8 {[%emt 0:00:53]} 40. Nf6+ {[%emt 0:00:00]} Nxf6 {[%emt 0:00:00]} 41. Bxf6 {[%emt 0:00:52]} Nh6 {[%emt 0:00:52]} 42. Bf3 {[%emt 0:02:13]} 1-0

[Event "WSTCC-65 2020"]
[Site "Prague"]
[Date "2020.03.10"]
[Round "5.16"]
[White "Schrickx, Frank"]
[Black "Gruzmann, Boris"]
[Result "1/2-1/2"]
[ECO "C68"]
[WhiteElo "1826"]
[BlackElo "2206"]
[Annotator "ChessBase"]
[PlyCount "84"]
[EventDate "2020.03.06"]
[EventType "team-tourn"]
[EventCountry "CZE"]
[SourceTitle "playchess.com"]
[Source "ChessBase"]
[SourceQuality "1"]
[TimeControl "40/5400+30:1800+30"]

1. e4 {[%emt 0:00:00]} e5 {[%emt 0:00:00]} 2. Nf3 {[%emt 0:00:00]} Nc6 {[%emt 0:00:00]} 3. Bb5 {[%emt 0:00:00]} a6 {[%emt 0:00:14]} 4. Bxc6 {[%emt 0:00:33]} dxc6 {[%emt 0:00:11]} 5. O-O {[%emt 0:00:08]} Bg4 {[%emt 0:01:04]} 6. h3 {[%emt 0:00:26]} h5 {[%emt 0:00:31]} 7. d3 {[%emt 0:00:37]} Qf6 {[%emt 0:00:38]} 8. Be3 {[%emt 0:01:47]} Bxf3 {[%emt 0:01:09]} 9. Qxf3 {[%emt 0:00:12]} Qxf3 {[%emt 0:00:10]} 10. gxf3 {[%emt 0:00:03]} Bd6 {[%emt 0:00:34]} 11. Nd2 {[%emt 0:00:52]} Ne7 {[%emt 0:00:34]} 12. Nc4 {[%emt 0:02:06]} Ng6 {[%emt 0:01:56]} 13. Nxd6+ {[%emt 0:00:39]} cxd6 {[%emt 0:00:12]} 14. Kh2 {[%emt 0:01:01]} O-O-O {[%emt 0:04:03]} 15. Rg1 {[%emt 0:02:13]} d5 {[%emt 0:01:17]} 16. a4 {[%emt 0:03:15]} Rh7 {[%emt 0:05:01]} 17. Rg3 {[%emt 0:05:12]} Re8 {[%emt 0:08:18]} 18. Rag1 {[%emt 0:07:43]} Re6 {[%emt 0:03:34]} 19. Kh1 {[%emt 0:03:18]} Kc7 {[%emt 0:02:03]} 20. a5 {[%emt 0:04:21]} d4 {[%emt 0:05:59]} 21. Bd2 {[%emt 0:01:24]} c5 {[%emt 0:01:17]} 22. b3 {[%emt 0:00:43]} Kc6 {[%emt 0:04:50]} 23. Bc1 {[%emt 0:11:17]} Kb5 {[%emt 0:00:15]} 24. Bd2 {[%emt 0:00:11]} Rc6 {[%emt 0:00:18]} 25. Kg2 {[%emt 0:02:26]} Nf8 {[%emt 0:16:07]} 26. Kf1 {[%emt 0:01:09]} Ne6 {[%emt 0:00:21]} 27. Ke2 {[%emt 0:00:25]} h4 {[%emt 0:09:10]} 28. Rg4 {[%emt 0:04:44]} f6 {[%emt 0:00:18]} 29. Rg6 {[%emt 0:01:40]} Rc7 {[%emt 0:00:16]} 30. R6g4 {[%emt 0:02:35]} g5 {[%emt 0:08:10]} 31. Ra1 {[%emt 0:02:12]} Nd8 {[%emt 0:02:12]} 32. Rg2 {[%emt 0:01:58]} Rhg7 {[%emt 0:05:52]} 33. Rag1 {[%emt 0:03:38]} Rce7 {[%emt 0:01:16]} 34. Rg4 {[%emt 0:01:25]} Nc6 {[%emt 0:02:02]} 35. Ra1 {[%emt 0:00:14]} Nb4 {[%emt 0:01:20]} 36. Kd1 {[%emt 0:01:51]} Rgf7 {[%emt 0:02:18]} 37. Rg1 {[%emt 0:02:30]} Rf8 {[%emt 0:00:41]} 38. Kc1 {[%emt 0:06:13]} Nc6 {[%emt 0:01:22]} 39. Kd1 {[%emt 0:01:21]} Nd8 {[%emt 0:01:41]} 40. Ke2 {[%emt 0:00:00]} Ne6 {[%emt 0:00:00]} 41. Bc1 {[%emt 0:04:53]} Rg7 {[%emt 0:04:05]} 42. Bd2 {[%emt 0:02:11]} Rfg8 {[%emt 0:07:43]} 1/2-1/2

[Event "WSTCC-65 2020"]
[Site "Prague"]
[Date "2020.03.10"]
[Round "5.18"]
[White "Maryasin, Boris"]
[Black "Ager, Josef"]
[Result "1-0"]
[ECO "C49"]
[WhiteElo "2305"]
[BlackElo "2139"]
[Annotator "ChessBase"]
[PlyCount "71"]
[EventDate "2020.03.06"]
[EventType "team-tourn"]
[EventCountry "CZE"]
[SourceTitle "playchess.com"]
[Source "ChessBase"]
[SourceQuality "1"]
[TimeControl "40/5400+30:1800+30"]

1. e4 {[%emt 0:00:00]} e5 {[%emt 0:00:00]} 2. Nf3 {[%emt 0:00:15]} Nc6 {[%emt 0:00:00]} 3. Nc3 {[%emt 0:00:58]} Nf6 {[%emt 0:00:29]} 4. Bb5 {[%emt 0:00:10]} Bb4 {[%emt 0:00:14]} 5. O-O {[%emt 0:00:23]} O-O {[%emt 0:02:23]} 6. d3 {[%emt 0:00:12]} d6 {[%emt 0:00:56]} 7. Ne2 {[%emt 0:00:19]} Ne7 {[%emt 0:01:28]} 8. c3 {[%emt 0:00:25]} Ba5 {[%emt 0:00:15]} 9. d4 {[%emt 0:01:31]} c6 {[%emt 0:01:18]} 10. Bd3 {[%emt 0:00:23]} Bc7 {[%emt 0:01:00]} 11. Ng3 {[%emt 0:01:06]} Ng6 {[%emt 0:00:19]} 12. Re1 {[%emt 0:00:46]} Re8 {[%emt 0:01:34]} 13. Be3 {[%emt 0:05:05]} a5 {[%emt 0:07:32]} 14. h3 {[%emt 0:01:20]} b6 {[%emt 0:05:09]} 15. Qc2 {[%emt 0:01:56]} Ba6 {[%emt 0:02:44]} 16. Bxa6 {[%emt 0:01:08]} Rxa6 {[%emt 0:00:01]} 17. Rad1 {[%emt 0:00:20]} Qb8 {[%emt 0:00:58]} 18. dxe5 {[%emt 0:01:16]} dxe5 {[%emt 0:00:42]} 19. Bg5 {[%emt 0:01:54]} Re6 {[%emt 0:02:55]} 20. Nf5 {[%emt 0:00:59]} h6 {[%emt 0:01:48]} 21. Bxh6 {[%emt 0:02:57]} gxh6 {[%emt 0:00:20]} 22. Nxh6+ {[%emt 0:00:08]} Kg7 {[%emt 0:00:17]} 23. Nf5+ {[%emt 0:02:22]} Kf8 {[%emt 0:05:49]} 24. Ng5 {[%emt 0:02:05]} Qe8 {[%emt 0:03:15]} 25. Nxe6+ {[%emt 0:00:50]} fxe6 {[%emt 0:00:30]} 26. Nd6 {[%emt 0:05:56]} Qe7 {[%emt 0:00:30]} 27. Qd2 {[%emt 0:01:44]} Kg7 {[%emt 0:00:43]} 28. Re3 {[%emt 0:00:35]} Ra8 {[%emt 0:00:23]} 29. Rg3 {[%emt 0:03:35]} Nh5 {[%emt 0:01:20]} 30. Rd3 {[%emt 0:00:09]} Nf6 {[%emt 0:04:03]} 31. Qg5 {[%emt 0:04:37]} Bxd6 {[%emt 0:00:38]} 32. Rxd6 {[%emt 0:00:12]} Nxe4 {[%emt 0:00:12]} 33. Qxe7+ {[%emt 0:00:21]} Nxe7 {[%emt 0:00:10]} 34. Rxe6 {[%emt 0:00:24]} Kf7 {[%emt 0:00:34]} 35. Rxe5 {[%emt 0:00:12]} Nf6 {[%emt 0:00:13]} 36. Rd6 {[%emt 0:01:28]} 1-0

[Event "WSTCC-65 2020"]
[Site "Prague"]
[Date "2020.03.10"]
[Round "5.19"]
[White "Mira, Helene"]
[Black "Shevelev, Arkady"]
[Result "1/2-1/2"]
[ECO "A46"]
[WhiteElo "2092"]
[BlackElo "2278"]
[Annotator "ChessBase"]
[PlyCount "62"]
[EventDate "2020.03.06"]
[EventType "team-tourn"]
[EventCountry "CZE"]
[SourceTitle "playchess.com"]
[Source "ChessBase"]
[SourceQuality "1"]
[TimeControl "40/5400+30:1800+30"]

1. d4 {[%emt 0:00:15]} Nf6 {[%emt 0:00:00]} 2. Nf3 {[%emt 0:00:17]} d5 {[%emt 0:00:00]} 3. c4 {[%emt 0:00:40]} c5 {[%emt 0:00:00]} 4. cxd5 {[%emt 0:00:33]} cxd4 {[%emt 0:00:05]} 5. Qa4+ {[%emt 0:00:11]} Qd7 {[%emt 0:00:09]} 6. Qxd4 {[%emt 0:00:08]} Qxd5 {[%emt 0:00:09]} 7. Nc3 {[%emt 0:00:31]} Qxd4 {[%emt 0:00:08]} 8. Nxd4 {[%emt 0:00:09]} a6 {[%emt 0:00:06]} 9. g3 {[%emt 0:00:17]} e5 {[%emt 0:00:08]} 10. Nb3 {[%emt 0:00:08]} Bd7 {[%emt 0:00:21]} 11. Bg2 {[%emt 0:00:12]} Bc6 {[%emt 0:00:06]} 12. O-O {[%emt 0:00:16]} Bb4 {[%emt 0:00:16]} 13. Bd2 {[%emt 0:00:23]} Bxg2 {[%emt 0:00:53]} 14. Kxg2 {[%emt 0:00:06]} Nc6 {[%emt 0:00:19]} 15. a3 {[%emt 0:00:16]} Be7 {[%emt 0:06:55]} 16. Bg5 {[%emt 0:00:13]} O-O-O {[%emt 0:00:43]} 17. Rfd1 {[%emt 0:03:37]} Rxd1 {[%emt 0:04:08]} 18. Rxd1 {[%emt 0:00:04]} Rd8 {[%emt 0:00:55]} 19. Rxd8+ {[%emt 0:00:41]} Bxd8 {[%emt 0:00:33]} 20. Bxf6 {[%emt 0:00:09]} Bxf6 {[%emt 0:00:20]} 21. Nd5 {[%emt 0:00:07]} Bd8 {[%emt 0:01:05]} 22. e4 {[%emt 0:03:52]} b6 {[%emt 0:05:11]} 23. Nd2 {[%emt 0:01:03]} Kd7 {[%emt 0:00:27]} 24. Kf3 {[%emt 0:02:34]} b5 {[%emt 0:00:52]} 25. Ke3 {[%emt 0:00:19]} Kd6 {[%emt 0:00:38]} 26. Kd3 {[%emt 0:00:09]} Ne7 {[%emt 0:04:02]} 27. Nxe7 {[%emt 0:07:35]} Kxe7 {[%emt 0:01:50]} 28. b4 {[%emt 0:00:15]} a5 {[%emt 0:01:13]} 29. Nb1 {[%emt 0:01:54]} Kd6 {[%emt 0:02:07]} 30. Nc3 {[%emt 0:00:11]} Kc6 {[%emt 0:00:25]} 31. Nd5 {[%emt 0:00:11]} a4 {[%emt 0:00:50]} 1/2-1/2